Cogmind - Beta 16 @@@ ROGUE MODE // 2025.12.28 @ 16:37:40 Player: parasect Result: Destroyed by M Guard with Graviton Cannon Performance ------------- Evolutions (9) 4500 Regions Visited (26) 5200 Robots Destroyed (168) 840 Value Destroyed (4078) 4078 Prototype IDs (40) 800 Alien Tech Used (3) 600 Bonus (10121) 10121 TOTAL SCORE: 26139 Bonus ------- High Alert Combat Kills 46 Follower Combat Kills 1769 Met Zhirov 300 Met Warlord at Base 500 MAIN.C Attacked Warlord 500 Built Enhanced Grunts 300 A7 Reached Mainframe 300 Met R17 at Cetus 500 Met Warlord at Research 2000 Acquired SGEMP 2000 Delivered SGEMP 2000 Friendly Fire -94 Cogmind --------- Core Integrity 0/1600 Matter 295/300 Energy 100/100 System Corruption 5% Temperature Cool (0) Movement Flying (45) Location -1/Command Parts ------- > --- POWER (2) -------- (None) > --- PROPULSION (7) --- Impulse Thruster Array > --- UTILITY (14) ----- Enhanced Optical Array Advanced Signal Interpreter Graphene Brace Hacking Suite Advanced System Shield > --- WEAPON (2) ------- (None) > --- INVENTORY (5) ---- (None) Peak State ------------ > --- POWER ------------ Backup Power III Light Quantum Reactor > --- PROPULSION ------- Improved Flight Unit Impulse Thruster Field Propulsion Array Q-thruster Impulse Thruster Array > --- UTILITY ---------- Advanced Power Amplifier Experimental Power Amplifier Structural Scanner Enhanced Optical Array Advanced Sensor Array Advanced Signal Interpreter Centrium Medium Armor Plating Graphene Brace Hacking Suite Hacking Suite Advanced Hacking Suite System Shield Improved System Shield Advanced System Shield > --- WEAPON ----------- Improved Arc Projector Enhanced Quantum Rifle > --- INVENTORY -------- Light Quantum Reactor Impulse Thruster Array Advanced Sensor Array Centrium Medium Armor Plating [Rating: 152] Favorites ----------- Power Cooled Ion Engine Engine Cooled Ion Engine Power Core Light Nuclear Core Reactor Light Quantum Reactor Propulsion Light Treads Treads Light Treads Leg Improved Aluminum Leg Flight Unit VTOL Module Utility Hacking Suite Device Seismic Detector Storage Huge Storage Unit Processor Advanced Signal Interpreter Hackware Hacking Suite Protection Light Armor Plating Weapon Improved Assault Rifle Energy Gun Heavy Laser Energy Cannon EM Pulse Cannon Ballistic Gun Improved Assault Rifle Ballistic Cannon Light Cannon Launcher Mini Grenade Launcher Special Weapon Plasma Cutter Impact Weapon Shock Maul Slashing Weapon Katana Piercing Weapon Vortex Lance Build | -11 -10 -10 -9 -9 -9 -8 -8 -7 -6 -6 -6 -5 -5 -5 -5 -4 -4 -4 -4 -4 -3 -3 -2 -2 -1 -1 ------- Run | Yrd Mat Min Mat Min Exi Min Mat Fac Fac Ext Cet Fac Upp Upp Zhi Pro Fac Upp Upp War Pro Res Res Tes Acc Com Slots Evolved 18 | . . . 2 . . . 2 2 2 . . 2 . . . . 2 . . . . 2 2 . 2 . Power 1 | . . . . . . . . . . . . 1 . . . . . . . . . . . . . . Propulsion 5 | . . . 1 . . . 1 . 1 . . . . . . . 1 . . . . . . . 1 . Utility 12 | . . . 1 . . . 1 2 1 . . 1 . . . . 1 . . . . 2 2 . 1 . Weapon . | . . . . . . . . . . . . . . . . . . . . . . . . . . . Parts Attached 161 | 7 10 2 23 1 . 2 30 6 10 11 4 . . 2 8 1 6 2 . 4 . 4 14 3 8 3 Power 23 | 1 1 . 3 . . . 4 . . 1 . . . 1 1 . 3 1 . 2 . 1 . 2 1 1 Engine 12 | 1 1 . 3 . . . 1 . . . . . . 1 . . 2 . . 1 . 1 . 1 . . Core 7 | . . . . . . . 3 . . 1 . . . . . . 1 1 . 1 . . . . . . Reactor 4 | . . . . . . . . . . . . . . . 1 . . . . . . . . 1 1 1 Propulsion 38 | 2 2 . 12 . . . 9 . 2 1 . . . . 1 1 1 . . . . 1 4 1 1 . Treads 16 | . . . 10 . . . 6 . . . . . . . . . . . . . . . . . . . Leg 6 | 2 2 . 1 . . . . . . . . . . . 1 . . . . . . . . . . . Wheel . | . . . . . . . . . . . . . . . . . . . . . . . . . . . Hover . | . . . . . . . . . . . . . . . . . . . . . . . . . . . Flight 16 | . . . 1 . . . 3 . 2 1 . . . . . 1 1 . . . . 1 4 1 1 . Utility 67 | 2 2 . 5 . . 1 9 6 6 8 3 . . 1 6 . 2 . . . . 2 8 . 4 2 Device 23 | 1 . . . . . . 3 1 1 5 1 . . 1 3 . 1 . . . . 1 4 . . 1 Storage 3 | 1 2 . . . . . . . . . . . . . . . . . . . . . . . . . Processor 10 | . . . . . . . 1 1 3 . . . . . . . 1 . . . . 1 1 . 2 . Hackware 9 | . . . . . . . . 1 1 1 . . . . 2 . . . . . . . 2 . 2 . Protection 22 | . . . 5 . . 1 5 3 1 2 2 . . . 1 . . . . . . . 1 . . 1 Artifact . | . . . . . . . . . . . . . . . . . . . . . . . . . . . Weapon 33 | 2 5 2 3 1 . 1 8 . 2 1 1 . . . . . . 1 . 2 . . 2 . 2 . Energy Gun 7 | 2 . . 1 . . . 2 . . . . . . . . . . . . . . . . . 2 . Energy Cannon 2 | . . . . . . . 1 . . . . . . . . . . . . 1 . . . . . . Ballistic Gun 12 | . 4 2 2 1 . 1 1 . . . 1 . . . . . . . . . . . . . . . Ballistic Cannon 2 | . . . . . . . 1 . 1 . . . . . . . . . . . . . . . . . Launcher 5 | . 1 . . . . . 1 . . 1 . . . . . . . . . . . . 2 . . . Special Weapon 1 | . . . . . . . 1 . . . . . . . . . . . . . . . . . . . Impact Weapon 1 | . . . . . . . . . 1 . . . . . . . . . . . . . . . . . Slashing Weapon 2 | . . . . . . . 1 . . . . . . . . . . 1 . . . . . . . . Piercing Weapon 1 | . . . . . . . . . . . . . . . . . . . . 1 . . . . . . Special Melee Weapon . | . . . . . . . . . . . . . . . . . . . . . . . . . . . Unidentified Prototypes 23 | . . . 3 . . . . . 4 . 2 . . . 5 1 1 . . 2 . . 5 . . . Corrupted Parts 1 | . . . . . . . . . . . . . . . . . . . . . . . 1 . . . System Corruption 9 | . . . . . . . . . . . . . . . . . . . . . . . 9 . . . Parts Lost 62 | . . 1 1 1 . 5 13 . . 5 2 . . 1 . . 1 1 . 1 . . 1 7 4 18 Power 11 | . . . . . . 1 1 . . . 1 . . 1 . . . . . . . . . 3 1 3 Propulsion 18 | . . . 1 . . 1 5 . . 1 . . . . . . 1 1 . 1 . . 1 1 . 5 Utility 25 | . . . . . . 3 4 . . 4 1 . . . . . . . . . . . . 2 1 10 Weapon 8 | . . 1 . 1 . . 3 . . . . . . . . . . . . . . . . 1 2 . Highest Loss Streak 17 | . . 1 1 1 . 5 4 . . 4 2 . . 1 . . 1 1 . 1 . . 1 7 4 17 To Critical Strikes 1 | . . . . 1 . . . . . . . . . . . . . . . . . . . . . . Average Backups 13 | 5 8 11 21 24 24 22 22 5 4 4 4 4 5 5 4 5 4 5 5 5 5 5 5 3 2 2 Power . | . . . . 1 1 1 1 . . . . . . . . . . . . . . . . . . . Propulsion 4 | 3 2 6 11 10 10 9 5 . . . . . . . . . . . . . . . . . . 1 Utility 5 | . 3 4 6 9 9 8 7 4 4 3 4 3 4 4 3 3 3 4 4 4 4 4 3 2 2 . Weapon 2 | . 1 1 3 4 4 3 7 . . . . 1 1 1 1 . . . . . . . . . . . Tool/Special . | . . . . . . . . . . . . . . . . . . . . . . . . . . . Unused Backups 25 | . 6 . 6 . . . 9 1 1 . . . . . . 1 1 . . . . . . . . . Power 1 | . . . . . . . 1 . . . . . . . . . . . . . . . . . . . Propulsion 11 | . 2 . 6 . . . 3 . . . . . . . . . . . . . . . . . . . Utility 8 | . 4 . . . . . 1 1 1 . . . . . . . 1 . . . . . . . . . Weapon 5 | . . . . . . . 4 . . . . . . . . 1 . . . . . . . . . . Tool/Special . | . . . . . . . . . . . . . . . . . . . . . . . . . . . Average Slot Usage (%) 94 | . 99 99 99 99 77 86 91 99 98 98 94 94 94 91 92 94 98 90 89 92 84 83 94 84 90 75 Engine 7 | . 14 14 11 11 11 10 2 . . . . . . 1 5 5 9 1 . 4 5 4 8 3 3 3 Core 1 | . . . . . . . 6 7 6 6 5 5 5 1 . . . 4 5 4 . . . . . . Treads 14 | . . . 32 33 33 32 33 . . . . . . . . . . . . . . . . . . . Leg 4 | . 28 28 . . . . . . . . . . . . . . . . . . . . . . . . Flight 10 | . . . . . . . . 30 33 32 33 29 29 29 28 29 30 26 26 25 21 20 23 19 20 16 Device 12 | . 13 14 11 11 11 5 7 15 13 10 15 23 23 23 17 17 16 15 15 15 15 15 17 18 19 17 Storage 7 | . 14 14 11 11 11 11 9 . . . . . . . . . . . . . . . . . . . Processor 2 | . . . . . . . . 14 12 8 . . . . . . 3 5 5 5 5 8 8 8 8 8 Hackware 5 | . . . . . . . . 6 12 12 13 11 11 11 15 17 15 15 15 15 15 14 18 18 23 22 Protection 8 | . . . 10 11 11 11 13 7 6 12 13 11 11 11 11 11 9 10 10 10 10 9 7 7 4 3 Energy Gun 1 | . 1 . . . . . 5 . . . . . . . . . . . . . . . . . 7 . Ballistic Gun 11 | . 26 27 21 21 . 16 10 . . . . . . . . . . . . . . . . . . . Launcher 1 | . . . . . . . . 7 5 5 6 5 5 5 5 5 5 5 5 4 5 4 4 2 . . Slashing Weapon 1 | . . . . . . . . 7 5 6 6 5 5 5 5 5 5 5 5 5 5 4 4 2 . . Peak Build Rating 152 | 7 10 10 21 20 19 21 34 36 51 52 55 56 56 58 62 61 76 75 69 79 66 82 124 123 152 137 Average Rating 37 | 5 9 9 19 19 16 18 28 34 45 48 49 55 56 55 57 59 72 68 69 72 66 74 104 114 146 119 On Entrance 51 | . 7 10 10 20 19 16 19 27 35 48 48 55 56 56 58 58 61 75 69 69 66 66 82 123 115 123 Avg Prop Armor Cover (%) 2 | . . . . . . . . . 2 2 2 . . 9 . . . . . . . . 1 3 2 . Naked Turns . | . . . . . . . . . . . . . . . . . . . . . . . . . . . Heaviest Build 105 | 14 89 89 98 98 96 98 105 18 18 25 27 22 22 26 26 25 31 30 23 25 20 24 32 36 46 35 Greatest Support 86 | 20 26 26 60 60 60 60 86 18 26 26 26 26 26 26 26 27 33 33 27 27 22 29 44 49 57 57 Greatest Overweight (x) 5 | 3 3 3 2 1 1 1 5 . . . 5 . . 5 1 . 1 . . . . . . . 1 2 Average Overweight (x) . | . . 3 1 1 1 1 1 . . . . . . . . . . . . . . . . . . . Largest Inventory Capacity 25 | 8 25 25 25 25 25 25 25 25 5 5 5 5 5 5 5 5 5 5 5 5 5 5 5 5 5 5 Average Capacity 15 | 7 13 25 25 25 25 25 25 5 5 5 5 5 5 5 5 5 5 5 5 5 5 5 5 5 5 5 Most Carried 25 | 7 9 13 25 24 25 24 25 7 5 5 5 5 5 5 5 5 5 5 5 5 5 5 5 5 5 4 Average Carried 13 | 5 8 11 21 24 24 22 22 5 4 4 4 4 5 5 4 4 4 5 5 5 5 5 4 4 2 3 Final Capacity 25 | 8 25 25 25 25 25 25 25 5 5 5 5 5 5 5 5 5 5 5 5 5 5 5 5 5 5 5 Final Carried 25 | 7 9 13 24 24 25 22 8 5 5 5 5 5 5 5 5 5 5 5 5 5 5 5 5 5 5 . Class Distribution -------------------- 36% | Scavenger-Mutant 26% | Mutant 15% | Hacker-Scout 6% | Scavenger-Scout 3% | Scavenger-Sprinter 3% | Hacker-Sprinter Dominant Class ---------------- Mutant | -10/Materials Mutant | -10/Mines Scavenger-Mutant | -9/Materials Scavenger-Mutant | -9/Mines Scavenger-Mutant | -9/Exiles Scavenger-Mutant | -8/Mines Scavenger-Mutant | -8/Materials Scavenger-Scout | -7/Factory Scavenger-Scout | -6/Factory Commander-Sprinter | -6/Extension Scavenger-Sprinter | -6/Cetus Scavenger-Scout | -5/Factory Scavenger-Scout | -5/Upper Caves Scavenger-Sprinter | -5/Upper Caves Hacker-Sprinter | -5/Zhirov Hacker-Sprinter | -4/Proximity Caves Hacker-Scout | -4/Factory Hacker-Scout | -4/Upper Caves Hacker-Scout | -4/Upper Caves Hacker-Scout | -4/Warlord Hacker-Scout | -3/Proximity Caves Hacker-Scout | -3/Research Hacker-Scout | -2/Research Hacker-Scout | -2/Testing Wizard-Scout | -1/Access Wizard-Scout | -1/Command Resources | -11 -10 -10 -9 -9 -9 -8 -8 -7 -6 -6 -6 -5 -5 -5 -5 -4 -4 -4 -4 -4 -3 -3 -2 -2 -1 -1 ----------- Run | Yrd Mat Min Mat Min Exi Min Mat Fac Fac Ext Cet Fac Upp Upp Zhi Pro Fac Upp Upp War Pro Res Res Tes Acc Com Matter Collected 4265 | 270 379 127 920 29 . 166 673 57 275 402 217 . 20 20 . 114 166 35 . 26 . 47 212 35 75 . Remotely . | . . . . . . . . . . . . . . . . . . . . . . . . . . . Salvage Created 6123 | 163 444 109 1691 124 . 166 1580 57 343 494 64 . . . . 17 341 . . . . 61 337 39 93 . Parts 355 | 9 27 8 130 10 . 5 87 2 8 25 2 . . . . 2 15 . . . . 8 7 5 5 . Haulers Intercepted 13 | . 2 . 5 . . . 1 . 2 1 . . . . . . 1 . . . . . 1 . . . Recyclers Shooed 8 | . 1 . 2 1 . . . . 1 3 . . . . . . . . . . . . . . . . Parts Field Recycled . | . . . . . . . . . . . . . . . . . . . . . . . . . . . Retrieved Matter . | . . . . . . . . . . . . . . . . . . . . . . . . . . . Parts Self-Destructed 11 | . . . . . . . . . . . . . 4 . . 7 . . . . . . . . . . Prevented 3 | . . . . . . . . . . . . . . 3 . . . . . . . . . . . . Parts Restored . | . . . . . . . . . . . . . . . . . . . . . . . . . . . Kills | -11 -10 -10 -9 -9 -9 -8 -8 -7 -6 -6 -6 -5 -5 -5 -5 -4 -4 -4 -4 -4 -3 -3 -2 -2 -1 -1 ------- Run | Yrd Mat Min Mat Min Exi Min Mat Fac Fac Ext Cet Fac Upp Upp Zhi Pro Fac Upp Upp War Pro Res Res Tes Acc Com Combat Hostiles Destroyed 92 | . 13 2 27 6 . 3 27 . . 10 . . . . . 2 . . . . . . . . 2 . Melee 3 | . . . . . . . . . . 1 . . . . . 2 . . . . . . . . . . Guns 70 | . 13 2 24 3 . 3 23 . . . . . . . . . . . . . . . . . 2 . Cannons 1 | . . . . . . . 1 . . . . . . . . . . . . . . . . . . . AOE 18 | . . . 3 3 . . 3 . . 9 . . . . . . . . . . . . . . . . Classes Destroyed 16 | 2 5 1 5 . . . 1 . . 1 . . . . . 1 . . . . . . . . . . Worker 9 | . . 1 3 . . . . . . 3 . . . . . . 1 . . . . 1 . . . . Builder 12 | . . . 2 . . . 2 1 . 2 . . . . . . 1 . . . . 1 . 2 1 . Tunneler 13 | 4 . . 1 1 . . 2 1 . 1 . . . . . . 1 . . . . 2 . . . . Hauler 13 | . 2 . 5 . . . 1 . 2 1 . . . . . . 1 . . . . . 1 . . . Recycler 7 | 1 . . 2 . . . 2 . 1 . . . . . . . . . . . . . 1 . . . Mechanic 2 | . . . 1 . . . . . . . . . . . . . . . . . . . 1 . . . Operator 6 | . 1 . 3 . . . . . . 1 . . . . . . 1 . . . . . . . . . Drone 2 | . . . . . . . . . . . . . . . . 2 . . . . . . . . . . Watcher 13 | . 2 . 5 . . . 1 . . 2 1 . . . . . 1 . . . . . 1 . . . Swarmer 25 | . 9 . 6 3 . . . . . 5 . . . . . . . . . . . . . . 2 . Grunt 45 | . 4 2 14 3 . 2 16 . . 4 . . . . . . . . . . . . . . . . Brawler 3 | . . . 1 . . . 2 . . . . . . . . . . . . . . . . . . . Duelist 4 | . . . 1 . . 1 2 . . . . . . . . . . . . . . . . . . . Sentry 10 | . . . 5 . . . 5 . . . . . . . . . . . . . . . . . . . Hunter 2 | . . . . . . . 2 . . . . . . . . . . . . . . . . . . . Behemoth 1 | . . . . . . . . . . 1 . . . . . . . . . . . . . . . . Butcher 1 | . . . . . . . . . . . 1 . . . . . . . . . . . . . . . Best Kill Streak 15 | 2 4 2 9 4 . 3 7 2 1 15 1 . . . . 1 2 . . . . 1 1 2 2 . Combat Bots Only 9 | . 4 2 8 3 . 3 6 . . 9 . . . . . 1 . . . . . . . . 2 . Max Kills in Single Turn 3 | 1 2 1 2 1 . 1 3 1 1 3 1 . . . . 1 1 . . . . 1 1 1 1 . Gunslinging 1 | . 1 . . . . . . . . . . . . . . . . . . . . . . . . . Exploded 3 | . . . 2 1 . . 1 . . 3 . . . . . . . . . . . . . . . . Melee 1 | . . . . . . . . . . 1 . . . . . 1 . . . . . . . . . . Uniques/NPCs Destroyed . | . . . . . . . . . . . . . . . . . . . . . . . . . . . Combat | -11 -10 -10 -9 -9 -9 -8 -8 -7 -6 -6 -6 -5 -5 -5 -5 -4 -4 -4 -4 -4 -3 -3 -2 -2 -1 -1 -------- Run | Yrd Mat Min Mat Min Exi Min Mat Fac Fac Ext Cet Fac Upp Upp Zhi Pro Fac Upp Upp War Pro Res Res Tes Acc Com Hostile Shots Fired 797 | . 57 16 151 23 . 31 196 . . 45 6 6 . 3 . . 8 28 4 8 . 9 1 49 39 117 Missed 272 | . 13 2 40 9 . 4 57 . . 21 1 3 . 1 . . 3 17 3 4 . 5 1 22 15 51 Hits 525 | . 44 14 111 14 . 27 139 . . 24 5 3 . 2 . . 5 11 1 4 . 4 . 27 24 66 Melee 23 | . . . . . . 10 . . . . . . . . . . . . . . . . . 2 11 . Projectile 502 | . 44 14 111 14 . 17 139 . . 24 5 3 . 2 . . 5 11 1 4 . 4 . 25 13 66 AOE 16 | . . . . . . . . . . . . . . . . . . . . . . . . . . 16 Critical Strikes 37 | . . . . 1 . 2 9 . . 2 . . . . . . 2 . . 2 . . . 1 8 10 Actively Blocked 19 | . . . . . . . . . . . . . . . . . . . . . . . . 1 8 10 Damage Taken 10876 | . 388 163 1277 149 . 601 2379 . . 778 140 59 . 36 . . 102 161 22 74 . 92 . 836 736 2883 Core 2438 | . 78 . 185 . . 35 208 . . 122 . . . . . . 22 18 22 16 . 47 . 85 110 1490 Absorbed by Shields 210 | . . . . . . . . . . 149 61 . . . . . . . . . . . . . . . Redirected to Shielding 172 | . . . . . . . 54 . . 118 . . . . . . . . . . . . . . . . Regen/Repaired (Parts) 302 | . 14 . 35 . . . . . . . . . . . . . 112 . . 12 . . 15 . 114 . Core Remaining (%) 83 | 100 . 68 . . . 45 62 100 . . 85 . . . . 100 . . . . 93 96 . 85 . . Volleys Fired 378 | 13 59 12 124 12 . 13 106 . . 22 5 . . . . . . . . . . . . . 12 . Largest 2 | 2 2 2 2 2 . 2 2 . . 1 1 . . . . . . . . . . . . . 1 . Hottest 132 | 90 90 40 46 46 . 46 132 . . 39 30 . . . . . . . . . . . . . 65 . Shots Fired 687 | 26 117 23 247 13 . 21 202 . . 22 4 . . . . . . . . . . . . . 12 . Gun 637 | 26 116 23 245 8 . 21 186 . . . . . . . . . . . . . . . . . 12 . Cannon 8 | . . . . . . . 8 . . . . . . . . . . . . . . . . . . . Launcher 42 | . 1 . 2 5 . . 8 . . 22 4 . . . . . . . . . . . . . . . Special . | . . . . . . . . . . . . . . . . . . . . . . . . . . . Kinetic 533 | . 110 23 245 8 . 21 126 . . . . . . . . . . . . . . . . . . . Thermal 101 | 26 6 . . . . . 60 . . . . . . . . . . . . . . . . . 9 . Explosive 42 | . 1 . 2 5 . . 8 . . 22 4 . . . . . . . . . . . . . . . Electromagnetic 11 | . . . . . . . 8 . . . . . . . . . . . . . . . . . 3 . Robot Hit Streak 23 | 7 8 12 14 4 . 17 23 . . 11 . . . . . . . . . . . . . . 1 . Robot Miss Streak 9 | 3 7 9 5 1 . 2 4 . . 2 . . . . . . . . . . . . . . 6 . Penetration Max 1 | . . . . . . . 1 . . . . . . . . . . . . . . . . . . . Secondary Targets 15 | . 4 . 3 . . 1 7 . . . . . . . . . . . . . . . . . . . Max Gunslinging Chain 1 | . 1 . 1 . . 1 1 . . . . . . . . . . . . . . . . . . . Shots Hit Robots 490 | 14 60 16 166 9 . 18 134 4 17 18 2 . . . . 2 11 . . . . 8 7 2 2 . Core Hits 283 | 6 31 7 78 13 . 8 64 . 6 50 5 . . . . 1 7 . . . . . 3 1 3 . Critical Kills 1 | . . . . . . . 1 . . . . . . . . . . . . . . . . . . . Critical Parts Destroyed 1 | . 1 . . . . . . . . . . . . . . . . . . . . . . . . . Critical Strikes 9 | 2 1 . . . . . 4 . 2 . . . . . . . . . . . . . . . . . Burn 5 | 2 . . . . . . 3 . . . . . . . . . . . . . . . . . . . Destroy 2 | . 1 . . . . . 1 . . . . . . . . . . . . . . . . . . . Sever 2 | . . . . . . . . . 2 . . . . . . . . . . . . . . . . . Melee Attacks 103 | . . . . . . . . 8 26 13 2 1 . . . 3 24 1 . . . 11 12 2 . . Impact . | . . . . . . . . . . . . . . . . . . . . . . . . . . . Slashing 103 | . . . . . . . . 8 26 13 2 1 . . . 3 24 1 . . . 11 12 2 . . Piercing . | . . . . . . . . . . . . . . . . . . . . . . . . . . . Sneak Attacks 27 | . . . . . . . . 2 3 4 . . . . . 1 5 . . . . 5 5 2 . . Combat Hostiles 1 | . . . . . . . . . . . . . . . . 1 . . . . . . . . . . Follow-up Attacks . | . . . . . . . . . . . . . . . . . . . . . . . . . . . Damage Inflicted 13252 | 166 796 172 2587 444 . 305 2892 204 687 2768 207 . . . . 104 652 . . . . 526 474 164 104 . Guns 6220 | 166 771 172 2402 75 . 263 2267 . . . . . . . . . . . . . . . . . 104 . Cannons 182 | . . . . . . . 182 . . . . . . . . . . . . . . . . . . . Explosions 3236 | . . . 162 358 . . 412 . . 2168 136 . . . . . . . . . . . . . . . Melee 3482 | . . . . . . . . 204 687 600 71 . . . . 104 652 . . . . 526 474 164 . . Ramming 132 | . 25 . 23 11 . 42 31 . . . . . . . . . . . . . . . . . . . Kinetic 5102 | . 746 172 2402 75 . 263 1444 . . . . . . . . . . . . . . . . . . . Thermal 1232 | 166 25 . . . . . 949 . . . . . . . . . . . . . . . . . 92 . Explosive 3079 | . . . 131 358 . . 286 . . 2168 136 . . . . . . . . . . . . . . . Electromagnetic 225 | . . . 31 . . . 182 . . . . . . . . . . . . . . . . . 12 . Impact . | . . . . . . . . . . . . . . . . . . . . . . . . . . . Slashing 3482 | . . . . . . . . 204 687 600 71 . . . . 104 652 . . . . 526 474 164 . . Piercing . | . . . . . . . . . . . . . . . . . . . . . . . . . . . Highest Corruption 18 | . 6 6 1 1 1 1 . . . 11 11 . . . . . . . . . . . 12 18 . 5 Average Corruption 3 | . 5 6 1 1 1 1 . . . 11 11 . . . . . . . . . . . 9 13 . 1 Corruption Purged . | . . . . . . . . . . . . . . . . . . . . . . . . . . . Corruption Blocked . | . . . . . . . . . . . . . . . . . . . . . . . . . . . Effects 98 | . 30 18 13 . 3 3 . . . 9 12 . . . . . . . . . . . 2 7 . 1 Message Errors 29 | . 8 7 1 . 1 1 . . . 4 4 . . . . . . . . . . . 1 1 . 1 Matter Fused 16 | . 11 . 1 . . . . . . 1 2 . . . . . . . . . . . 1 . . . Heat Flow Errors 13 | . 1 4 3 . 1 2 . . . 1 1 . . . . . . . . . . . . . . . Energy Discharges 8 | . 3 . 1 . . . . . . 2 2 . . . . . . . . . . . . . . . Parts Fused 2 | . 1 . 1 . . . . . . . . . . . . . . . . . . . . . . . Data Loss (minor) 13 | . 3 4 3 . 1 . . . . . . . . . . . . . . . . . . 2 . . Data Loss (major) 5 | . . 1 . . . . . . . 1 2 . . . . . . . . . . . . 1 . . Misfires 5 | . 1 2 2 . . . . . . . . . . . . . . . . . . . . . . . Alerts 1 | . 1 . . . . . . . . . . . . . . . . . . . . . . . . . Misdirections 3 | . . . . . . . . . . . . . . . . . . . . . . . . 3 . . Weapon Failures 3 | . 1 . 1 . . . . . . . 1 . . . . . . . . . . . . . . . Overload Shots . | . . . . . . . . . . . . . . . . . . . . . . . . . . . Overflow Damage 819 | . . . . . . . 27 91 35 125 2 . . . . 11 118 . . . . 294 67 49 . . Projectiles . | . . . . . . . . . . . . . . . . . . . . . . . . . . . Explosions 84 | . . . . . . . 27 . . 57 . . . . . . . . . . . . . . . . Melee 735 | . . . . . . . . 91 35 68 2 . . . . 11 118 . . . . 294 67 49 . . Knockbacks . | . . . . . . . . . . . . . . . . . . . . . . . . . . . Impact . | . . . . . . . . . . . . . . . . . . . . . . . . . . . Kinetic . | . . . . . . . . . . . . . . . . . . . . . . . . . . . Secondary . | . . . . . . . . . . . . . . . . . . . . . . . . . . . Self-Inflicted Damage 189 | . . . 20 . . . 124 . . 45 . . . . . . . . . . . . . . . . Shots 5 | . . . 1 . . . 2 . . 2 . . . . . . . . . . . . . . . . Rammed 12 | . . . 2 1 . 2 7 . . . . . . . . . . . . . . . . . . . Targets Rammed 17 | . 4 . 3 1 . 2 7 . . . . . . . . . . . . . . . . . . . Kicked 4 | . 4 . . . . . . . . . . . . . . . . . . . . . . . . . Crushed 1 | . . . 1 . . . . . . . . . . . . . . . . . . . . . . . Highest Temperature 366 | 132 233 254 307 2 82 104 366 2 204 252 215 20 2 2 . . . . . 5 . . . . . . Average Temperature 75 | 39 45 80 70 2 51 33 109 2 22 114 122 7 2 2 . . . . . 5 . . . . . . Received Heat Transfer 2171 | . 90 84 423 45 . 153 1089 . . 140 . 21 . . . . 9 9 . 36 . . . 18 . 54 Effects 7 | . . 3 1 . . . 3 . . . . . . . . . . . . . . . . . . . Shutdowns 2 | . . . . . . . 2 . . . . . . . . . . . . . . . . . . . Energy Bleed 1 | . . . . . . . 1 . . . . . . . . . . . . . . . . . . . Interference 4 | . . 3 1 . . . . . . . . . . . . . . . . . . . . . . . Siege Activations . | . . . . . . . . . . . . . . . . . . . . . . . . . . . Martial Activations . | . . . . . . . . . . . . . . . . . . . . . . . . . . . Shielding Activations . | . . . . . . . . . . . . . . . . . . . . . . . . . . . Robots Disrupted . | . . . . . . . . . . . . . . . . . . . . . . . . . . . Combat Hostiles . | . . . . . . . . . . . . . . . . . . . . . . . . . . . Robots Corrupted . | . . . . . . . . . . . . . . . . . . . . . . . . . . . Combat Hostiles . | . . . . . . . . . . . . . . . . . . . . . . . . . . . Parts Fried . | . . . . . . . . . . . . . . . . . . . . . . . . . . . Impact Corruptions . | . . . . . . . . . . . . . . . . . . . . . . . . . . . Robots Melted . | . . . . . . . . . . . . . . . . . . . . . . . . . . . Combat Hostiles . | . . . . . . . . . . . . . . . . . . . . . . . . . . . Parts Melted 7 | 2 1 . . . . . 4 . . . . . . . . . . . . . . . . . . . Heat Transferred 2628 | 582 50 . . . . . 1913 . . . . . . . . . . . . . . . . . 83 . Parts Sabotaged . | . . . . . . . . . . . . . . . . . . . . . . . . . . . Parts Stolen . | . . . . . . . . . . . . . . . . . . . . . . . . . . . Parts Stripped . | . . . . . . . . . . . . . . . . . . . . . . . . . . . Power Chain Reactions 2 | . . . . . . . 2 . . . . . . . . . . . . . . . . . . . Alert | -11 -10 -10 -9 -9 -9 -8 -8 -7 -6 -6 -6 -5 -5 -5 -5 -4 -4 -4 -4 -4 -3 -3 -2 -2 -1 -1 ------- Run | Yrd Mat Min Mat Min Exi Min Mat Fac Fac Ext Cet Fac Upp Upp Zhi Pro Fac Upp Upp War Pro Res Res Tes Acc Com Maximum Alert Level 2 | . . . 1 1 . . 1 . . 2 1 . . . . . 1 . . . . . . . 1 . Low Security (%) 78 | 100 100 100 61 91 . 100 41 100 100 57 80 100 . . . . 98 . . . . 100 100 100 55 100 Level 1 20 | . . . 38 8 . . 58 . . 23 19 . . . . . 1 . . . . . . . 44 . Level 2 1 | . . . . . . . . . . 18 . . . . . . . . . . . . . . . . Level 3 . | . . . . . . . . . . . . . . . . . . . . . . . . . . . Level 4 . | . . . . . . . . . . . . . . . . . . . . . . . . . . . Level 5 . | . . . . . . . . . . . . . . . . . . . . . . . . . . . High Security . | . . . . . . . . . . . . . . . . . . . . . . . . . . . Max Security . | . . . . . . . . . . . . . . . . . . . . . . . . . . . Peak Influence 596 | 5 94 65 368 217 . 50 315 157 42 596 268 169 . . . . 204 . . . . 107 75 15 273 161 Initial 150 | . . . . 125 . . . 137 42 7 138 138 . . . . 150 . . . . . 60 3 . 136 Average 101 | 1 33 11 144 148 . 4 174 123 8 207 170 127 . . . . 124 . . . . 20 25 3 136 125 Influence Increases 6010 | 25 488 133 948 162 . 70 885 40 59 1145 360 71 70 . . 40 341 180 60 . . 157 101 40 462 173 Destroy 0b10 Robot/C 2740 | . 260 100 580 120 . 60 540 . . 600 160 . 60 . . 20 40 . . . . . 20 . 180 . Destroy 0b10 Robot/NC 400 | 25 25 5 110 5 . . 40 10 15 55 10 . . . . 10 35 . . . . 20 20 10 5 . Destroy Leader 530 | . 68 20 160 20 . 10 134 . 4 46 . . 10 . . 10 4 . . . . . 4 . 40 . Allied During Kill 531 | . . 8 3 4 . . . . . 265 157 . . . . . 4 . . . . . . . 90 . Successful Hack 224 | . 62 . 26 . . . . . 5 13 . 11 . . . . . . . . . . 45 15 9 38 Disable Machine 150 | . 30 . 45 . . . 15 . . 30 . . . . . . 15 . . . . 15 . . . . Destroy Structure 250 | . 13 . 9 13 . . 51 . 5 91 33 . . . . . 18 . . . . 2 12 . 3 . Advance Influence 150 | . . . . . . . . . . . . . . . . . 150 . . . . . . . . . Partial Spotted 195 | . . . . . . . . 30 30 45 . . . . . . 15 . . . . 15 . 15 30 15 Lose Combat Pursuer 840 | . 30 . 15 . . . 105 . . . . 60 . . . . 60 180 60 . . 105 . . 105 120 Influence Decreases 5951 | 25 488 133 626 367 117 70 582 256 131 912 360 150 183 56 . 40 280 124 63 114 . 50 201 47 249 327 Entered New Map 1116 | . . . . 197 117 . . 166 45 8 110 110 63 11 . . . 24 23 114 . . 47 4 . 77 Time Decay 3394 | 25 488 103 506 160 . 50 472 90 86 288 130 40 100 40 . 25 230 90 40 . . 50 124 18 169 70 Lost Part 493 | . . 10 . 10 . 20 110 . . 50 20 . . 5 . . 10 10 . . . . 10 18 40 180 Lost Ally 391 | . . 20 20 . . . . . . 116 100 . 20 . . 15 40 . . . . . 20 . 40 . Purge Threat 557 | . . . 100 . . . . . . 450 . . . . . . . . . . . . . 7 . . Squads Dispatched 35 | . 3 . 4 . . . 9 . 1 2 . 1 . . . . 4 . . . . . 2 2 4 3 Investigation 6 | . 1 . . . . . 1 . . . . 1 . . . . 1 . . . . . 1 . . 1 Extermination 5 | . . . . . . . . . 1 . . . . . . . 2 . . . . . . . 1 1 Reinforcement 18 | . 2 . 4 . . . 2 . . 2 . . . . . . 1 . . . . . 1 2 3 1 Assault . | . . . . . . . . . . . . . . . . . . . . . . . . . . . Garrison 6 | . . . . . . . 6 . . . . . . . . . . . . . . . . . . . Intercept . | . . . . . . . . . . . . . . . . . . . . . . . . . . . Searches Triggered . | . . . . . . . . . . . . . . . . . . . . . . . . . . . Construction Impeded 3 | . . . . . . . 2 . . 1 . . . . . . . . . . . . . . . . Haulers Reinforced 1 | . . . . . . . . . . . . . . . . . . . . . . . 1 . . . Active Scanning Responses . | . . . . . . . . . . . . . . . . . . . . . . . . . . . Cargo Convoy Interrupts . | . . . . . . . . . . . . . . . . . . . . . . . . . . . Stealth | -11 -10 -10 -9 -9 -9 -8 -8 -7 -6 -6 -6 -5 -5 -5 -5 -4 -4 -4 -4 -4 -3 -3 -2 -2 -1 -1 --------- Run | Yrd Mat Min Mat Min Exi Min Mat Fac Fac Ext Cet Fac Upp Upp Zhi Pro Fac Upp Upp War Pro Res Res Tes Acc Com Distress Signals 18 | . . . 2 . . . 2 . . 1 2 1 . . . . 2 . . . . . 5 1 2 . Communications Jammed 5 | . . . . . . . . . . 5 . . . . . . . . . . . . . . . . Distress Signals 5 | . . . . . . . . . . 5 . . . . . . . . . . . . . . . . Times Spotted 273 | . 29 5 40 6 . 3 35 1 1 25 8 5 . 1 . 1 9 17 5 4 . 7 6 16 29 20 Peak Tracking Total 17 | . 5 2 6 3 . 3 4 1 1 7 5 5 . 1 . 1 7 10 4 4 . 6 3 15 10 17 Tactical Retreats 25 | . 1 . 1 . . . 6 . . . . 1 . . . . 2 3 1 . . 2 . . 5 3 Traps | -11 -10 -10 -9 -9 -9 -8 -8 -7 -6 -6 -6 -5 -5 -5 -5 -4 -4 -4 -4 -4 -3 -3 -2 -2 -1 -1 ------- Run | Yrd Mat Min Mat Min Exi Min Mat Fac Fac Ext Cet Fac Upp Upp Zhi Pro Fac Upp Upp War Pro Res Res Tes Acc Com Traps Triggered 5 | . 4 . . . . . . . . 1 . . . . . . . . . . . . . . . . Indirectly . | . . . . . . . . . . . . . . . . . . . . . . . . . . . Trap Hack Attempts . | . . . . . . . . . . . . . . . . . . . . . . . . . . . Triggered . | . . . . . . . . . . . . . . . . . . . . . . . . . . . Disarmed 10 | . . . . . . . . . . 10 . . . . . . . . . . . . . . . . Reprogrammed . | . . . . . . . . . . . . . . . . . . . . . . . . . . . Reused . | . . . . . . . . . . . . . . . . . . . . . . . . . . . Traps Extracted . | . . . . . . . . . . . . . . . . . . . . . . . . . . . Installed . | . . . . . . . . . . . . . . . . . . . . . . . . . . . Triggered . | . . . . . . . . . . . . . . . . . . . . . . . . . . . Machines | -11 -10 -10 -9 -9 -9 -8 -8 -7 -6 -6 -6 -5 -5 -5 -5 -4 -4 -4 -4 -4 -3 -3 -2 -2 -1 -1 ---------- Run | Yrd Mat Min Mat Min Exi Min Mat Fac Fac Ext Cet Fac Upp Upp Zhi Pro Fac Upp Upp War Pro Res Res Tes Acc Com Machines Disabled 15 | . 2 . 3 . . . 1 . . 6 . . . . . 1 1 . . . . 1 . . . . Max in Single Turn 2 | . 1 . 2 . . . 1 . . 1 . . . . . 1 1 . . . . 1 . . . . Garrison Access 7 | . . . . . . . . 1 1 . . . . . . . 1 . . . . 1 2 . 1 . Machines Repaired . | . . . . . . . . . . . . . . . . . . . . . . . . . . . Machines Dismantled . | . . . . . . . . . . . . . . . . . . . . . . . . . . . Machines Sabotaged . | . . . . . . . . . . . . . . . . . . . . . . . . . . . Overloaded Fab Kills . | . . . . . . . . . . . . . . . . . . . . . . . . . . . Hacking | -11 -10 -10 -9 -9 -9 -8 -8 -7 -6 -6 -6 -5 -5 -5 -5 -4 -4 -4 -4 -4 -3 -3 -2 -2 -1 -1 --------- Run | Yrd Mat Min Mat Min Exi Min Mat Fac Fac Ext Cet Fac Upp Upp Zhi Pro Fac Upp Upp War Pro Res Res Tes Acc Com Machines Accessed 107 | . 7 . 7 1 2 . 2 7 12 11 2 5 . 1 7 1 11 . 2 4 . 2 5 5 8 5 Terminals 59 | . 6 . 5 1 . . . 4 7 10 2 3 . . . . 5 . . . . 1 2 3 5 5 Fabricators 4 | . . . . . . . . 1 . . . . . . . . 1 . . . . . . 1 1 . Repair Stations 10 | . 1 . 1 . . . . 1 1 . . 2 . . . . 2 . . . . . 1 . 1 . Recycling Units 4 | . . . . . . . 1 . 1 1 . . . . . . 1 . . . . . . . . . Scanalyzers 6 | . . . 1 . . . 1 . 1 . . . . . . . 1 . . . . . 1 1 . . Garrison Access 7 | . . . . . . . . 1 2 . . . . . . . 1 . . . . 1 1 . 1 . Total Hacks 350 | . 26 . 20 3 31 . 10 10 38 26 5 12 . 1 26 1 34 . 8 11 . 2 17 23 23 23 Successful 203 | . 11 . 12 1 31 . 7 2 20 16 1 3 . 1 26 1 16 . 8 11 . 2 7 12 10 5 Failed 144 | . 15 . 8 2 . . 2 8 17 10 4 9 . . . . 17 . . . . . 10 11 13 18 Catastrophic 28 | . . . 2 1 . . 1 1 4 2 1 2 . . . . 5 . . . . . 2 1 1 5 Database Lockouts 3 | . . . . . . . 1 . 1 . . . . . . . 1 . . . . . . . . . Manual 72 | . 12 . 8 2 . . 1 3 6 6 3 2 . . . . 6 . . . . . 1 9 . 13 Terminals 171 | . 24 . 14 3 . . . 7 15 23 5 7 . . . . 15 . . . . 1 4 15 15 23 Fabricators 9 | . . . . . . . . 1 . . . . . . . . 2 . . . . . . 3 3 . Repair Stations 28 | . 2 . 4 . . . . 1 1 . . 5 . . . . 6 . . . . . 7 . 2 . Recycling Units 14 | . . . . . . . 4 . 2 3 . . . . . . 5 . . . . . . . . . Scanalyzers 36 | . . . 2 . . . 6 . 15 . . . . . . . 4 . . . . . 4 5 . . Garrison Access 14 | . . . . . . . . 1 5 . . . . . . . 2 . . . . 1 2 . 3 . Terminal Hacks 141 | . 8 . 8 1 31 . . 1 5 13 1 2 . 1 26 1 4 . 8 11 . 1 1 7 7 4 Record 70 | . . . . . 31 . . . 1 . . . . . 14 1 1 . 7 10 . . 1 . 3 1 Part Schematic 5 | . . . . . . . . . . . . . . . 4 . . . . . . . . 1 . . Robot Analysis 10 | . 5 . . . . . . . 1 . . . . . 4 . . . . . . . . . . . Prototype ID Bank 8 | . 2 . 2 . . . . . . . . . . . 4 . . . . . . . . . . . Open Door 13 | . . . . . . . . . . 5 1 . . 1 . . . . 1 1 . . . 1 3 . Open DSF 3 | . . . . . . . . . 1 . . 1 . . . . . . . . . 1 . . . . Level Access Points 1 | . . . . . . . . . . . . . . . . . . . . . . . . 1 . . Branch Access Points 2 | . . . . . . . . . 1 . . . . . . . . . . . . . . 1 . . Emergency Access Points 2 | . . . . . . . . . . . . . . . . . . . . . . . . . . 2 Fabricator Index 1 | . . . . . . . . . . . . . . . . . 1 . . . . . . . . . Alert Level 1 | . . . 1 . . . . . . . . . . . . . . . . . . . . . . . Unreport Threat 6 | . . . 2 . . . . . . 3 . . . . . . . . . . . . . 1 . . Locate Traps 6 | . 1 . . . . . . 1 . 1 . . . . . . 1 . . . . . . 1 . 1 Disarm Traps 2 | . . . . . . . . . . 2 . . . . . . . . . . . . . . . . Transport Status 1 | . . . 1 . . . . . . . . . . . . . . . . . . . . . . . Recall Investigation 1 | . . . . . . . . . . . . . . . . . 1 . . . . . . . . . Recall Reinforcements 2 | . . . . . . . . . . 1 . . . . . . . . . . . . . . 1 . Hauler Manifests 1 | . . . 1 . . . . . . . . . . . . . . . . . . . . . . . Registered Components 2 | . . . 1 . . . . . 1 . . . . . . . . . . . . . . . . . Zone Layout 4 | . . . . 1 . . . . . 1 . 1 . . . . . . . . . . . 1 . . Fabricator Hacks 5 | . . . . . . . . . . . . . . . . . 2 . . . . . . 1 2 . Network Status 2 | . . . . . . . . . . . . . . . . . . . . . . . . 1 1 . Load Schematic 2 | . . . . . . . . . . . . . . . . . 1 . . . . . . . 1 . Build 1 | . . . . . . . . . . . . . . . . . 1 . . . . . . . . . Repair Station Hacks 13 | . 2 . 2 . . . . . . . . 1 . . . . 4 . . . . . 4 . . . Scan Component 7 | . 1 . 1 . . . . . . . . 1 . . . . 2 . . . . . 2 . . . Repair 5 | . 1 . 1 . . . . . . . . . . . . . 2 . . . . . 1 . . . Refit 1 | . . . . . . . . . . . . . . . . . . . . . . . 1 . . . Recycling Unit Hacks 6 | . . . . . . . 1 . 1 2 . . . . . . 2 . . . . . . . . . Retrieve Matter 3 | . . . . . . . . . 1 1 . . . . . . 1 . . . . . . . . . Retrieve Components 3 | . . . . . . . 1 . . 1 . . . . . . 1 . . . . . . . . . Scanalyzer 28 | . . . 2 . . . 5 . 13 . . . . . . . 3 . . . . . 1 4 . . Insert Component 10 | . . . 1 . . . 2 . 6 . . . . . . . 1 . . . . . . . . . Analyze 9 | . . . 1 . . . 2 . 6 . . . . . . . . . . . . . . . . . Retrieve Study 9 | . . . . . . . 1 . 1 . . . . . . . 2 . . . . . 1 4 . . Garrison Access Hacks 6 | . . . . . . . . 1 1 . . . . . . . 1 . . . . 1 1 . 1 . Seal Access 6 | . . . . . . . . 1 1 . . . . . . . 1 . . . . 1 1 . 1 . Unauthorized Hacks 4 | . 1 . . . . . 1 . . 1 . . . . . . . . . . . . . . . 1 Terminals 2 | . 1 . . . . . . . . . . . . . . . . . . . . . . . . 1 Assimilate 1 | . . . . . . . . . . . . . . . . . . . . . . . . . . 1 Operators 1 | . 1 . . . . . . . . . . . . . . . . . . . . . . . . . Fabricators . | . . . . . . . . . . . . . . . . . . . . . . . . . . . Repair Stations . | . . . . . . . . . . . . . . . . . . . . . . . . . . . Recycling Units 2 | . . . . . . . 1 . . 1 . . . . . . . . . . . . . . . . Reject 2 | . . . . . . . 1 . . 1 . . . . . . . . . . . . . . . . Scanalyzers . | . . . . . . . . . . . . . . . . . . . . . . . . . . . Garrison Access . | . . . . . . . . . . . . . . . . . . . . . . . . . . . Data Cores Recovered 1 | . . . . . . . . . . . . . . . . . 1 . . . . . . . . . Used . | . . . . . . . . . . . . . . . . . . . . . . . . . . . Hacking Detections 76 | . 7 . 6 1 . . 2 6 12 8 3 4 . . . . 9 . . . . . 5 3 5 5 Full Trace Events 6 | . 1 . . . . . 1 . . . . 1 . . . . 1 . . . . . 1 . . 1 Feedback Events 1 | . 1 . . . . . . . . . . . . . . . . . . . . . . . . . Corruption 1 | . 1 . . . . . . . . . . . . . . . . . . . . . . . . . Feedback Blocked . | . . . . . . . . . . . . . . . . . . . . . . . . . . . Robot Schematics Acquired . | . . . . . . . . . . . . . . . . . . . . . . . . . . . Robots Built . | . . . . . . . . . . . . . . . . . . . . . . . . . . . Authchips . | . . . . . . . . . . . . . . . . . . . . . . . . . . . Time . | . . . . . . . . . . . . . . . . . . . . . . . . . . . Total Robot Build Rating . | . . . . . . . . . . . . . . . . . . . . . . . . . . . Part Schematics Acquired 13 | . . . 1 . . . 1 . 6 . . . . . 4 . . . . . . . . 1 . . Parts Built 1 | . . . . . . . . . . . . . . . . . 1 . . . . . . . . . Authchips . | . . . . . . . . . . . . . . . . . . . . . . . . . . . Time 99 | . . . . . . . . . . . . . . . . . 99 . . . . . . . . . Total Part Build Rating 2 | . . . . . . . . . . . . . . . . . 2 . . . . . . . . . Part Studies Acquired 9 | . . . . . . . 1 . 1 . . . . . . . 2 . . . . . 1 4 . . Parts Repaired 5 | . 1 . 1 . . . . . . . . . . . . . 2 . . . . . 1 . . . Time 115 | . 13 . 26 . . . . . . . . . . . . . 51 . . . . . 25 . . . Parts Recycled . | . . . . . . . . . . . . . . . . . . . . . . . . . . . Recycled Matter . | . . . . . . . . . . . . . . . . . . . . . . . . . . . Retrieved Matter . | . . . . . . . . . . . . . . . . . . . . . . . . . . . Retrieved Components 15 | . . . . . . . 4 . . 9 . . . . . . 2 . . . . . . . . . Parts Scanalyzed 9 | . . . 1 . . . 2 . 6 . . . . . . . . . . . . . . . . . Part Schematics Acquired 8 | . . . 1 . . . 1 . 6 . . . . . . . . . . . . . . . . . Parts Damaged 2 | . . . . . . . . . 2 . . . . . . . . . . . . . . . . . Bothacking | -11 -10 -10 -9 -9 -9 -8 -8 -7 -6 -6 -6 -5 -5 -5 -5 -4 -4 -4 -4 -4 -3 -3 -2 -2 -1 -1 ------------ Run | Yrd Mat Min Mat Min Exi Min Mat Fac Fac Ext Cet Fac Upp Upp Zhi Pro Fac Upp Upp War Pro Res Res Tes Acc Com Used RIF Installer . | . . . . . . . . . . . . . . . . . . . . . . . . . . . Robots Hacked . | . . . . . . . . . . . . . . . . . . . . . . . . . . . Non-combat . | . . . . . . . . . . . . . . . . . . . . . . . . . . . Combat . | . . . . . . . . . . . . . . . . . . . . . . . . . . . Robot Hacks Applied . | . . . . . . . . . . . . . . . . . . . . . . . . . . . Relay Couplers Released 5 | . . . . . . . . . . . . . . . . . . . . . . . 5 . . . Machine Destruction 5 | . . . . . . . . . . . . . . . . . . . . . . . 5 . . . Fabnet Peak Effective % . | . . . . . . . . . . . . . . . . . . . . . . . . . . . Robots Rewired 15 | . . . . . . . . . . 14 . . . . . . . . . . . . 1 . . . Allies Hacked . | . . . . . . . . . . . . . . . . . . . . . . . . . . . Hacks Repelled . | . . . . . . . . . . . . . . . . . . . . . . . . . . . Allies | -11 -10 -10 -9 -9 -9 -8 -8 -7 -6 -6 -6 -5 -5 -5 -5 -4 -4 -4 -4 -4 -3 -3 -2 -2 -1 -1 -------- Run | Yrd Mat Min Mat Min Exi Min Mat Fac Fac Ext Cet Fac Upp Upp Zhi Pro Fac Upp Upp War Pro Res Res Tes Acc Com Total Allies 33 | . . 2 . 1 . . . . . 21 5 . . . . . . . . . . . 1 . 3 . Largest Group 13 | . . 2 1 1 1 . . . . 13 13 9 7 5 5 5 2 . . . . . 1 . 3 . Highest-Rated Group 812 | . . 41 31 31 31 . . . . 506 812 589 406 285 285 285 192 . . . . . 69 . 379 . Highest-Rated Ally 159 | . . 31 31 31 31 . . . . 159 152 152 96 96 96 96 96 . . . . . 69 . 135 . Total Orders 3 | . . . . . . . . . . . . . . . . 3 . . . . . . . . . . ROAM 1 | . . . . . . . . . . . . . . . . 1 . . . . . . . . . . FOLLOW 2 | . . . . . . . . . . . . . . . . 2 . . . . . . . . . . Ally Attacks 252 | . . 7 4 . . . . . . 114 65 2 22 . . 4 15 . . . . . 5 . 14 . Total Damage 6684 | . . 147 64 . . . . . . 3077 1397 . 673 . . 80 507 . . . . . 210 . 529 . Kills 54 | . . 3 2 . . . . . . 22 12 . 4 . . 1 2 . . . . . 1 . 7 . Allies Corrupted 1 | . . . . . . . . . . . . . . . . . . . . . . . . . 1 . Allies Melted . | . . . . . . . . . . . . . . . . . . . . . . . . . . . Intel | -11 -10 -10 -9 -9 -9 -8 -8 -7 -6 -6 -6 -5 -5 -5 -5 -4 -4 -4 -4 -4 -3 -3 -2 -2 -1 -1 ------- Run | Yrd Mat Min Mat Min Exi Min Mat Fac Fac Ext Cet Fac Upp Upp Zhi Pro Fac Upp Upp War Pro Res Res Tes Acc Com Active Infowar (turns) 10800 | 63 1727 500 2498 322 456 459 27 193 315 655 186 98 215 372 110 261 497 195 87 301 112 129 429 70 374 149 Optics 1348 | . . . . . . . . . 92 429 . . . . . . . . . . . . 234 70 374 149 Sensors 4579 | . . . . . . . . 193 315 524 185 98 215 372 110 261 497 195 87 301 112 129 429 70 364 122 IFF 423 | . . . . . . . . . . 187 184 52 . . . . . . . . . . . . . . Terrain 193 | . . . . . . . . . . . . . . . . . . . . . . 13 180 . . . Structural 3736 | . . . . . . . 5 193 315 2 1 98 215 372 110 261 497 195 87 301 61 12 429 68 374 140 Seismic 6025 | 63 1727 500 2498 322 456 459 . . . . . . . . . . . . . . . . . . . . Machine Analysis 439 | . . . . . . . 27 193 219 . . . . . . . . . . . . . . . . . Cloaking 1 | . . . . . . . . . . . . . . 1 . . . . . . . . . . . . Jamming 130 | . . . . . . . . . . 130 . . . . . . . . . . . . . . . . Robot Analysis Total 10 | . 5 . . . . . . . 1 . . . . . 4 . . . . . . . . . . . Derelict Logs Recovered 5 | . . . . 1 . . . . . . . . . 2 . 1 . 1 . . . . . . . . Drone Launches . | . . . . . . . . . . . . . . . . . . . . . . . . . . . Drone Recoveries . | . . . . . . . . . . . . . . . . . . . . . . . . . . . Exploration | -11 -10 -10 -9 -9 -9 -8 -8 -7 -6 -6 -6 -5 -5 -5 -5 -4 -4 -4 -4 -4 -3 -3 -2 -2 -1 -1 ------------- Run | Yrd Mat Min Mat Min Exi Min Mat Fac Fac Ext Cet Fac Upp Upp Zhi Pro Fac Upp Upp War Pro Res Res Tes Acc Com Turns Passed 12943 | 175 1740 545 2498 322 456 862 1448 193 315 695 264 98 215 372 110 261 497 195 87 301 112 129 429 101 374 149 Spaces Moved 14512 | 98 960 155 825 120 188 334 415 574 751 1141 466 219 482 496 157 637 1252 720 314 886 372 355 1219 253 722 401 Core 44 | 11 . . . . . . . . . . 1 . . 30 . . . . . . . . . . . 2 Treads 1880 | . . . 825 120 188 334 413 . . . . . . . . . . . . . . . . . . . Legs 1202 | 87 960 155 . . . . . . . . . . . . . . . . . . . . . . . . Wheels . | . . . . . . . . . . . . . . . . . . . . . . . . . . . Hover . | . . . . . . . . . . . . . . . . . . . . . . . . . . . Flight 11386 | . . . . . . . 2 574 751 1141 465 219 482 466 157 637 1252 720 314 886 372 355 1219 253 722 399 Fastest Speed 22 | 50 120 330 243 243 243 243 240 28 26 25 25 25 25 25 25 25 22 23 26 26 28 26 25 29 29 29 Average Speed 67 | 120 156 330 243 243 243 243 245 28 27 27 27 25 25 41 26 25 22 25 26 26 28 27 27 30 32 32 Slowest Speed 403 | 200 330 330 320 243 243 243 403 28 28 28 300 25 25 300 105 26 104 26 26 28 28 28 29 34 115 150 Overloaded Moves . | . . . . . . . . . . . . . . . . . . . . . . . . . . . Propulsion Burnouts . | . . . . . . . . . . . . . . . . . . . . . . . . . . . Robots Hopped 104 | . . . . . . . . 2 6 7 . 5 . . . . 10 2 1 . . 2 28 8 13 20 Potential Cave-ins 3 | . . . . . . . 2 . . . . . . . . . . . . 1 . . . . . . Cave-ins Triggered 1 | . . . . . . . . . . 1 . . . . . . . . . . . . . . . . Teleports 1 | . . . . . . . . . . . . . . . . . . . . . . . . 1 . . Exploration Rate (%) 48 | 8 98 27 71 28 63 69 28 19 21 88 95 5 66 53 62 66 28 90 52 92 71 7 35 31 23 18 Regions Visited 26 Branch Regions 16 Pre-discovered Areas 5 | . . . . 1 1 . . . . . . . . . 3 . . . . . . . . . . . Known Exits Taken 11 | . . . . . . . . 1 1 . . . . . . . 1 1 1 1 1 1 1 1 1 . Unknown Exits Taken 15 | 1 1 1 1 1 1 1 1 . . 1 1 1 1 1 1 1 . . . . . . . . . . Scrap Searched 13 | . . 1 . . . . . . . . . . 2 3 . 2 . 3 2 . . . . . . . Spaces Dug 18 | . . . . . . . . . 5 1 . . . . . . 6 1 . . . 1 4 . . . Terrain Destroyed 266 | . 11 . 5 21 . . 58 . 5 108 46 . . . . . 6 1 . . . 1 4 . . . Melee 18 | . . . . . . . . . 5 1 . . . . . . 6 1 . . . 1 4 . . . Projectile 1 | . . . . . . . 1 . . . . . . . . . . . . . . . . . . . AOE 247 | . 11 . 5 21 . . 57 . . 107 46 . . . . . . . . . . . . . . . Terrain Rammed . | . . . . . . . . . . . . . . . . . . . . . . . . . . . Walls Destroyed . | . . . . . . . . . . . . . . . . . . . . . . . . . . . Machines Disabled . | . . . . . . . . . . . . . . . . . . . . . . . . . . . Actions | -11 -10 -10 -9 -9 -9 -8 -8 -7 -6 -6 -6 -5 -5 -5 -5 -4 -4 -4 -4 -4 -3 -3 -2 -2 -1 -1 --------- Run | Yrd Mat Min Mat Min Exi Min Mat Fac Fac Ext Cet Fac Upp Upp Zhi Pro Fac Upp Upp War Pro Res Res Tes Acc Com Total 16664 | 125 1092 171 1088 135 189 361 642 592 819 1467 597 254 575 660 225 731 1424 725 317 956 379 371 1274 265 831 399 Wait 1203 | . 33 . 56 . . . 21 . 14 203 104 38 94 162 48 85 120 2 5 60 8 2 30 9 98 11 Move 14297 | 97 959 154 824 119 187 333 414 569 739 1126 465 211 481 495 156 636 1231 716 311 885 371 350 1172 237 695 364 Hop 85 | . . . . . . . . 2 5 7 . 2 . . . . 10 1 1 . . 2 18 7 13 17 Pick Up 89 | 8 10 3 22 . . 4 17 2 3 3 3 1 . . 2 1 6 . . . . . 3 1 . . Fast Attach 106 | 6 4 1 6 1 . 2 8 3 9 5 3 . . 2 8 2 11 2 . 4 . 5 15 3 6 . Attach 68 | 1 . . 9 . . 6 20 3 6 3 5 1 . . 2 . 3 . . . . . . 2 2 5 Detach 42 | . . . 9 . 1 . 11 . 8 1 4 . . . 1 . 2 . . . . . 1 1 3 . Swap 63 | . 8 1 13 2 . . 10 . 1 12 1 . . . . 1 3 . . 1 . . 5 1 2 2 Drop 141 | . 15 . 22 . 1 1 28 5 8 4 5 . . 1 8 3 14 3 . 6 . 1 14 2 . . Fire 378 | 13 59 12 124 12 . 13 106 . . 22 5 . . . . . . . . . . . . . 12 . Melee 103 | . . . . . . . . 8 26 13 2 1 . . . 3 24 1 . . . 11 12 2 . . Ram . | . . . . . . . . . . . . . . . . . . . . . . . . . . . Kick 4 | . 4 . . . . . . . . . . . . . . . . . . . . . . . . . Crush 13 | . . . 3 1 . 2 7 . . . . . . . . . . . . . . . . . . . Escape Stasis 15 | . . . . . . . . . . 15 . . . . . . . . . . . . . . . . Rewire 57 | . . . . . . . . . . 53 . . . . . . . . . . . . 4 . . . Trap . | . . . . . . . . . . . . . . . . . . . . . . . . . . . Miscellaneous . | . . . . . . . . . . . . . . . . . . . . . . . . . . . Route ------- -11/Scrapyard -10/Materials (discovered 5 exits: *Mat x3 / [*Min] / [*Sub]) -10/Mines -9/Materials (discovered 3 exits: *Mat x2 / *Min) -9/Mines -9/Exiles (discovered 2 exits: [*Min x2]) -8/Mines -8/Materials -7/Factory -6/Factory (discovered 5 exits: *Low x2 / *Ext x2 / DSF) -6/Extension (discovered 2 exits: *Fac / *Cet) -6/Cetus (discovered 3 exits: *Fac x2 / [*Arc]) -5/Factory -5/Upper Caves -5/Upper Caves -5/Zhirov -4/Proximity Caves -4/Factory (discovered 3 exits: *Res x2 / *Upp) -4/Upper Caves -4/Upper Caves -4/Warlord -3/Proximity Caves -3/Research (discovered 2 exits: *Res x2) -2/Research (discovered 3 exits: *Acc x2 / *Tes) -2/Testing -1/Access (discovered 2 exits: Sur / *Com) -1/Command History --------- Turn | Location | Event 17 | -11/Scrapyard | Discovered new exit (range 16) 176 | -11/Scrapyard | Entered Materials 178 | -10/Materials | Discovered new exit (range 15) 309 | -10/Materials | Build established: Mutant 383 | -10/Materials | Discovered new exit (range 7) 385 | -10/Materials | Discovered new exit (range 8) 744 | -10/Materials | Discovered new exit (range 8) 1016 | -10/Materials | Discovered new exit (range 9) 1423 | -10/Materials | Repaired Seismic Detector 1916 | -10/Materials | Entered Mines 2021 | -10/Mines | Discovered new exit (range 6) 2461 | -10/Mines | Entered Materials 2461 | -9/Materials | Accompanied by 1 ally 2461 | -9/Materials | Evolved 2 slots: Propulsion x1, Utility x1 2466 | -9/Materials | Led the pair of lost Derelicts to an unsafe place 2664 | -9/Materials | Destroyed 8 combat bots 3034 | -9/Materials | Discovered new exit (range 9) 3165 | -9/Materials | Build established: Scavenger-Mutant 3564 | -9/Materials | Repaired Lgt. Armor Plating 3576 | -9/Materials | Discovered new exit (range 3) 4119 | -9/Materials | Discovered new exit (range 12) 4959 | -9/Materials | Entered Mines 4991 | -9/Mines | Learned location of Zion (-7) 5056 | -9/Mines | Escorted by a lone wolf Derelict 5271 | -9/Mines | Deemed a non-threat by the Exiles lab entrance 5271 | -9/Mines | Discovered new exit (range 5) 5281 | -9/Mines | Entered Exiles 5281 | -9/Exiles | Accompanied by 1 ally 5314 | -9/Exiles | Discovered new exit (range 15) 5343 | -9/Exiles | Met 8R-AWN 5377 | -9/Exiles | Met EX-HEX 5477 | -9/Exiles | Met EX-DEC 5562 | -9/Exiles | Met EX-BIN 5717 | -9/Exiles | Discovered new exit (range 10) 5737 | -9/Exiles | Entered Mines 6201 | -8/Mines | Core integrity fell below 50% 6239 | -8/Mines | Lost 5 parts (1p1n3u) 6476 | -8/Mines | Build established: Mutant 6567 | -8/Mines | Discovered new exit (range 12) 6599 | -8/Mines | Entered Materials 6599 | -8/Materials | Evolved 2 slots: Propulsion x1, Utility x1 6647 | -8/Materials | Central database locked down 6732 | -8/Materials | Garrison activated, responded to threat 6908 | -8/Materials | Build established: Scavenger-Mutant 7066 | -8/Materials | Garrison activated, responded to threat 7783 | -8/Materials | Lost 4 parts (2n2w) 7849 | -8/Materials | Discovered new exit (range 9) 8047 | -8/Materials | Entered Factory 8047 | -7/Factory | Evolved 2 slots: Utility x2 8157 | -7/Factory | Discovered new exit (range 13) 8161 | -7/Factory | Identified exit to Factory 8240 | -7/Factory | Entered another Factory area 8240 | -6/Factory | Evolved 2 slots: Propulsion x1, Utility x1 8311 | -6/Factory | Build established: Scavenger-Scout 8327 | -6/Factory | Identified exit to DSF 8363 | -6/Factory | Central database locked down 8421 | -6/Factory | Identified exit to Lower Caves 8421 | -6/Factory | Identified exit to Extension 8460 | -6/Factory | Found Prototype Processor 8460 | -6/Factory | Identified Exp. Targeting Computer 8555 | -6/Factory | Entered Extension 8569 | -6/Extension | Rescued a captive Derelict 8648 | -6/Extension | Lost 3 allies 8663 | -6/Extension | Rescued A7 8698 | -6/Extension | Rescued a captive Derelict 8699 | -6/Extension | Rescued a captive Derelict 8904 | -6/Extension | Spotted B-75 Beast 8930 | -6/Extension | Disrupted transfer network 8988 | -6/Extension | Allies destroyed B-75 Beast 9003 | -6/Extension | Spotted B-75 Beast 9015 | -6/Extension | Destroyed B-75 Beast 9018 | -6/Extension | Crushed by falling debris 9018 | -6/Extension | System corruption reached 10% 9041 | -6/Extension | Destroyed 9 combat bots 9049 | -6/Extension | Lost 4 parts (1n3u) 9070 | -6/Extension | Rescued a captive Derelict 9076 | -6/Extension | Rescued a captive Derelict 9079 | -6/Extension | Rescued a captive Derelict 9169 | -6/Extension | Discovered new exit (range 10) 9170 | -6/Extension | Discovered new exit (range 6) 9250 | -6/Extension | Entered Cetus 9250 | -6/Cetus | Accompanied by 13 allies (A7) 9255 | -6/Cetus | Acquired a Cetus Manufacturing Module code from A7 9263 | -6/Cetus | Spotted Cetus Guard 9263 | -6/Cetus | Spotted Cetus Guard 9265 | -6/Cetus | Spotted Cetus Guard 9266 | -6/Cetus | Spotted Cetus Guard 9279 | -6/Cetus | Allies destroyed Cetus Guard 9282 | -6/Cetus | Allies destroyed Cetus Guard 9289 | -6/Cetus | Allies destroyed Cetus Guard 9292 | -6/Cetus | Allies destroyed Cetus Guard 9322 | -6/Cetus | Started Cetus Manufacturing Module 9331 | -6/Cetus | Lost 6 allies 9347 | -6/Cetus | Manufactured an Enhanced Grunt 9370 | -6/Cetus | Discovered new exit (range 15) 9372 | -6/Cetus | Manufactured an Enhanced Grunt 9397 | -6/Cetus | Manufactured an Enhanced Grunt 9411 | -6/Cetus | Escorted A7 to Cetus Mainframe 9422 | -6/Cetus | Manufactured an Enhanced Grunt 9434 | -6/Cetus | Discovered new exit (range 16) 9447 | -6/Cetus | Manufactured an Enhanced Grunt 9451 | -6/Cetus | Spotted Cetus Guard 9452 | -6/Cetus | Spotted Cetus Guard 9477 | -6/Cetus | Discovered new exit (range 16) 9482 | -6/Cetus | Met Revision 17 9510 | -6/Cetus | Lost 3 allies 9514 | -6/Cetus | Entered Factory 9514 | -5/Factory | Accompanied by 9 allies (A7) 9514 | -5/Factory | Evolved 2 slots: Power x1, Utility x1 9521 | -5/Factory | Received a hacking code to weaken MAIN.C 9524 | -5/Factory | Identified exit to DSF 9539 | -5/Factory | Discovered new exit (range 5) 9612 | -5/Factory | Entered Upper Caves 9612 | -5/Upper Caves | Accompanied by 7 allies 9677 | -5/Upper Caves | Discovered new exit (range 12) 9827 | -5/Upper Caves | Entered another Upper Caves area 9827 | -5/Upper Caves | Accompanied by 5 allies 9843 | -5/Upper Caves | Learned 4 Factory zone layouts 10113 | -5/Upper Caves | Discovered new exit (range 10) 10199 | -5/Upper Caves | Entered Zhirov 10199 | -5/Zhirov | Accompanied by 5 allies 10199 | -5/Zhirov | Discovered new exit (range 3) 10204 | -5/Zhirov | Met Zhirov 10209 | -5/Zhirov | Learned location of Quarantine (-3) 10209 | -5/Zhirov | Learned location of Testing (-2) 10209 | -5/Zhirov | Learned location of Command (-1) 10214 | -5/Zhirov | Zhirov requested help retrieving the SGEMP Prototype 10219 | -5/Zhirov | Found Alien Artifact 10224 | -5/Zhirov | Found Alien Artifact 10224 | -5/Zhirov | Identified Integrated Dissipator 10224 | -5/Zhirov | Installed Integrated Dissipator, increased core heat dissipation (+20) 10309 | -5/Zhirov | Entered Proximity Caves 10309 | -4/Proximity Caves | Accompanied by 5 allies 10317 | -4/Proximity Caves | Found Alien Artifact 10317 | -4/Proximity Caves | Identified Dimensional Node Initializer 10317 | -4/Proximity Caves | Initialized slip node 10395 | -4/Proximity Caves | Learned location of 1 exit from Research 10443 | -4/Proximity Caves | Spotter reported a threat 10455 | -4/Proximity Caves | Discovered new exit (range 16) 10515 | -4/Proximity Caves | Build established: Hacker-Sprinter 10570 | -4/Proximity Caves | Entered Factory 10570 | -4/Factory | Accompanied by 2 allies 10570 | -4/Factory | Evolved 2 slots: Propulsion x1, Utility x1 10639 | -4/Factory | Repaired VTOL Module+ 10771 | -4/Factory | Discovered new exit (range 13) 10774 | -4/Factory | Identified exit to Research 10871 | -4/Factory | Repaired Imp. Light Armor Plating 10904 | -4/Factory | Discovered new exit (range 16) 10907 | -4/Factory | Central database locked down 10907 | -4/Factory | Identified Transdimensional Reconstructor 10910 | -4/Factory | Identified exit to Upper Caves 10946 | -4/Factory | Discovered exit to Research (range 8) 11007 | -4/Factory | Build established: Hacker-Scout 11048 | -4/Factory | Fabricated Imp. Flight Unit (x1) 11067 | -4/Factory | Entered Upper Caves 11228 | -4/Upper Caves | Attracted the attention of an 0b10 outpost 11249 | -4/Upper Caves | Discovered new exit (range 10) 11251 | -4/Upper Caves | Identified exit to Upper Caves 11256 | -4/Upper Caves | Learned Research security intel 11262 | -4/Upper Caves | Entered another Upper Caves area 11263 | -4/Upper Caves | Identified exit to Warlord 11325 | -4/Upper Caves | Entered an active Warlord outpost 11326 | -4/Upper Caves | Learned location of 1 exit from Research 11326 | -4/Upper Caves | Learned Factory garrison access intel 11326 | -4/Upper Caves | Learned Armory garrison access intel 11347 | -4/Upper Caves | Attracted the attention of an 0b10 checkpoint 11349 | -4/Upper Caves | Entered Warlord 11432 | -4/Warlord | Met Warlord 11456 | -4/Warlord | Warlord's base attacked by MAIN.C 11477 | -4/Warlord | Found Prototype Energy Cannon 11477 | -4/Warlord | Identified Vortex Cannon 11479 | -4/Warlord | Found Prototype Piercing Weapon 11479 | -4/Warlord | Identified Vortex Lance 11648 | -4/Warlord | Discovered new exit (range 8) 11650 | -4/Warlord | Identified exit to Proximity Caves 11650 | -4/Warlord | Entered Proximity Caves 11737 | -3/Proximity Caves | Discovered exit to Research (range 12) 11762 | -3/Proximity Caves | Entered Research 11762 | -3/Research | Evolved 2 slots: Utility x2 11763 | -3/Research | Identified exit to Research 11795 | -3/Research | Identified exit to DSF 11891 | -3/Research | Entered another Research area 11891 | -2/Research | Warlord forces began assault on 0b10 11891 | -2/Research | Evolved 2 slots: Utility x2 11955 | -2/Research | Repaired Nuclear Pulse Thruster+ 11964 | -2/Research | Met up with Warlord 12001 | -2/Research | Research machine network offline 12099 | -2/Research | Found Prototype Launcher 12099 | -2/Research | Identified Com. Tesla Bomb Launcher 12104 | -2/Research | Discovered new exit (range 5) 12105 | -2/Research | Identified exit to Access 12122 | -2/Research | Lost 5 allies 12242 | -2/Research | Discovered exit to Access (range 5) 12278 | -2/Research | System corruption reached 10% 12297 | -2/Research | Spotted Striker 12312 | -2/Research | Discovered new exit (range 4) 12313 | -2/Research | Identified exit to Testing 12320 | -2/Research | Entered Testing 12346 | -2/Testing | Warped through subspace 12350 | -2/Testing | Spotted PP-VYV14MWWMM 12354 | -2/Testing | Spotted Striker 12354 | -2/Testing | Spotted Striker 12356 | -2/Testing | Spotted Alpha 7 12358 | -2/Testing | Stole the SGEMP Prototype 12421 | -2/Testing | Entered Access 12421 | -1/Access | Evolved 2 slots: Propulsion x1, Utility x1 12422 | -1/Access | Delivered the SGEMP Prototype to Zhirov 12422 | -1/Access | Zhirov transferred Access data 12423 | -1/Access | Loaded intel: 115 machine locations 12423 | -1/Access | Loaded intel: 92 trap records 12423 | -1/Access | Identified exit to Surface 12423 | -1/Access | Discovered exit to Surface (range 149) 12423 | -1/Access | Identified exit to Command 12423 | -1/Access | Discovered exit to Command (range 224) 12446 | -1/Access | Lost 7 parts (3p1n2u1w) 12795 | -1/Access | Entered Command 12824 | -1/Command | Lost 4 parts (1p1u2w) 12847 | -1/Command | Spotted B-99 Colossus 12908 | -1/Command | Spotted M Guard 12908 | -1/Command | Spotted M Guard 12908 | -1/Command | Spotted Combat Programmer 12909 | -1/Command | Spotted Combat Programmer 12937 | -1/Command | Core integrity fell below 50% 12940 | -1/Command | Core integrity fell below 20% 12944 | -1/Command | Destroyed by M Guard with Graviton Cannon Last Messages --------------- 12923_ EMDS Slug penetrates Wall. 12925_ Penetrated by EMDS Slug. 12926_ Impulse Thruster Array+ destroyed. 12927_ Penetrated by EMDS Slug. 12930_ Field Propulsion Array+ destroyed. 12930_ Centrium Medium Armor Plating destroyed. 12930_ Lgt. Quantum Reactor+ destroyed. 12930_ Impulse Thruster+ destroyed. 12930_ Imp. Flight Unit destroyed. 12931_ Penetrated by EMDS Slug. 12933_ Exp. Power Amplifier destroyed. 12935_ Structural Scanner destroyed. 12935_ Imp. System Shield destroyed. 12935_ Penetrated by EMDS Slug. 12938_ System Shield destroyed. 12938_ Penetrated by EMDS Slug. 12942_ Hacking Suite destroyed. 12943_ Penetrated by EMDS Slug. 12943_ Combat Programmer resets Combat Programmer, system corruption cleaned. Map ----- +----------------------------------------------------+ | ?????????????????????????????????????????????????? | | ????????????????????????????????#????????????????? | | ???????????????????????????????? ????????????????? | | ??????????????????????????????##"##??????????????? | | ??????????????????????????????# #??????????????? | | ??????????????????????????????# #??????????????? | | ??????????????????????????????# #??????????????? | | ??????????????????????????????# #??????????????? | | ??????????????????????????????# #??????????????? | | ??????????????????????????????# #??????????????? | | ??????????????????????????????# #??????????????? | | ??????????????????????????????# #??????????????? | | ??????????????????????????????# #??????????????? | | ??????????????????????????????# #??????????????? | | ??????????????????????????????# #??????????????? | | ??????????????????????????????# #??????????????? | | ??????????????????????????????# #??????????????? | | ??????????????????????????????# #??????????????? | | ??????????????????????????????# #??????????????? | | ??????????????????????????????# #??????????????? | | ??????????????????????????????# #??????????????? | | ??????????????????????????????# #??????????????? | | ???????????????????????????#### ####???????????? | | ???????????????????????????# # ####????????? | | ???????????????????????#"""## # #######?## | | ???????????????????????# @ # # #?# | | ???????????????????????# ## # ### | | ???????????????????????# % p | | ???????????????????????# pY | | ???????????????????????# Y | | ???????????????????????# p | | ???????????????????????# | | ???????????????????????# # #" ### | | ???????????????????????####### ## #?# | | ?????????????????????????????### # # #######?## | | ??????????????????????????????? #######????????? | | ??????????????????????????????# #??????????????? | | ??????????????????????????????# #??????????????? | | ??????????????????????????????# #??????????????? | | ??????????????????????????????# #??????????????? | | ??????????????????????????????# #??????????????? | | ??????????????????????????????# #??????????????? | | ??????????????????????????????# #??????????????? | | ??????????????????????????????# #??????????????? | | ??????????????????????????????# #??????????????? | | ??????????????????????????????# #??????????????? | | ??????????????????????????????# #??????????????? | | ??????????????????????????????# #??????????????? | | ??????????????????????????????# #??????????????? | | ??????????????????????????????# ???????????????? | +----------------------------------------------------+ Best States ------------- Heat Dissipation 72 Energy Generation 50 Energy Capacity 280 Matter Stores 300 Matter Capacity 300 Sight Range 22 Robot Scan Range 16 Terrain Scan Range 16 Terrain Scan Density 10 Jamming Range 12 Power Amplification 70 Additional Mass Support 12 Armor Coverage 600 Core Shielding 20 Power Shielding 66 Propulsion Shielding 66 Weapon Shielding 90 Evasion (%) 73 Melee Accuracy 8 Recoil Reduction 4 Salvage Targeting 3 Offensive Hacking 34 Defensive Hacking 38 Item Schematics ----------------- Hacking Suite | -9/Materials | Scanalyzed Imp. Flight Unit | -8/Materials | Scanalyzed Imp. Propulsion Shielding | -6/Factory | Scanalyzed Coolant Injector | -6/Factory | Scanalyzed Gravity Neutralizer | -6/Factory | Scanalyzed Imp. Medium Armor Plating | -6/Factory | Scanalyzed Lgt. Nuclear Core | -6/Factory | Scanalyzed VTOL Module | -6/Factory | Scanalyzed Assault Drone Bay | -5/Zhirov | Free Exp. Heat Sink | -5/Zhirov | Free Exp. Optical Array | -5/Zhirov | Free Imp. Arc Thrower | -5/Zhirov | Free Lgt. Regenerative Plating | -2/Testing | Hacked Robot Schematics ------------------ None Fabricated ------------ Imp. Flight Unit | x1 | -4/Factory Repaired ---------- Seismic Detector | 30% | -10/Materials Lgt. Armor Plating | 61% | -9/Materials VTOL Module | 4% | -4/Factory Imp. Light Armor Plating | 51% | -4/Factory Nuclear Pulse Thruster | 50% | -2/Research Studied --------- Mni. Grenade Launcher | -8/Materials | Hacked VTOL Module | -6/Factory | Hacked Lgt. Ion Engine | -4/Factory | Hacked Nuclear Pulse Thruster | -4/Factory | Hacked Impulse Thruster | -2/Research | Hacked Field Propulsion Array | -2/Testing | Hacked Impulse Thruster Array | -2/Testing | Hacked Q-thruster | -2/Testing | Hacked Lgt. Quantum Reactor | -2/Testing | Hacked Alien Tech Used ----------------- Integrated Dissipator Dimensional Node Initializer Transdimensional Reconstructor Achievements -------------- All-out Warlord Deadly Force Main Advantage Revising The Future Rockin' Loadout Watch This! Challenges ------------ None Game ------ Seed PhaseSingularityBattery Manual? 0 Play Time 03:52:50 Cumulative 35.5 hours Start 2025.12.26 @ 00:19:54 End 2025.12.28 @ 16:37:40 Sessions 14 Manual Loads 0 Difficulty Rogue Special Mode None Game No. 28 Rogue 28 Adventurer 0 Explorer 0 Win Type - Total 3 Types 3/0/0/0/0/0/0/0/0/0 Lore% 35 Gallery% 31 Achievement% 31 Wizard Run 0 Options --------- Layout 1 ASCII 0 Keyboard 1 Movement Numpad Keybinds 0 Fullscreen 2 Font 24/Terminus Map View 50x35 Zoom Use 0% Tactical HUD 1 Map Filters NONE Filters NONE Steam 1 RUN: 7234e662-3887-47da-a171-8f460a9f8f1f